fUSD/lending_fUSD_20250124
["ID","MTS","AMOUNT","RATE_DAILY","PERIOD"]
[350264602,1737750667947,-500.0,0.00019409,2]
[350264603,1737750667958,-500.0,0.00019409,2]
[350264604,1737750667968,-151.0,0.0001941,2]
[350264605,1737750667978,-500.0,0.0001941,2]
[350264606,1737750667987,-500.0,0.0001941,2]
[350264607,1737750667997,-500.0,0.0001941,2]
[350264608,1737750668006,-300.58345539,0.0001941,2]
[350264609,1737750668016,-3276.83794688,0.00019417,2]
[350264610,1737750668026,-150.0,0.0001947,2]
[350264611,1737750668035,-301.9737604,0.00019482,2]
[350264612,1737750668045,-925.0,0.0001952,2]
[350264613,1737750668054,-3276.83794688,0.00019521,2]
[350264614,1737750668064,-10270.89554809,0.00019534,2]
[350264615,1737750668073,-500.0,0.00019544,2]
[350264616,1737750668082,-313.05008814,0.00019544,2]
[350264617,1737750668091,-500.0,0.00019544,2]
[350264618,1737750668100,-500.0,0.00019545,2]
[350264619,1737750668109,-500.0,0.00019545,2]
[350264620,1737750668118,-500.0,0.00019545,2]
[350264621,1737750668127,-500.0,0.00019545,2]
[350264622,1737750668136,-500.0,0.00019545,2]
[350264623,1737750668145,-500.0,0.00019545,2]
[350264624,1737750668154,-500.0,0.00019545,2]
[350264625,1737750668163,-500.0,0.00019545,2]
[350264626,1737750668172,-1717.58,0.00019545,2]
[350264627,1737750668182,-500.0,0.00019545,2]
[350264628,1737750668197,-500.0,0.00019545,2]
[350264629,1737750668207,-500.0,0.00019545,2]
[350264630,1737750668216,-500.0,0.00019545,2]
[350264631,1737750668226,-420.770977,0.00019545,2]
[350264632,1737750668235,-500.0,0.00019545,2]
[350264633,1737750668244,-500.0,0.00019545,2]
[350264634,1737750668254,-500.0,0.00019545,2]
[350264635,1737750668263,-585.392894,0.00019545,2]
[350264636,1737750668273,-196.0485837,0.00019545,2]
[350264637,1737750668282,-500.0,0.00019545,2]
[350264638,1737750668292,-500.0,0.00019545,2]
[350264639,1737750668301,-500.0,0.00019545,2]
[350264640,1737750668310,-500.0,0.00019545,2]
[350264641,1737750668319,-500.0,0.00019545,2]
[350264642,1737750668329,-500.0,0.00019545,2]
[350264643,1737750668339,-500.0,0.00019545,2]
[350264644,1737750668348,-500.0,0.00019545,2]
[350264645,1737750668357,-500.0,0.00019545,2]
[350264646,1737750668367,-500.0,0.00019545,2]
[350264647,1737750668376,-500.0,0.00019545,2]
[350264648,1737750668386,-500.0,0.00019545,2]
[350264649,1737750668396,-500.0,0.00019545,2]
[350264650,1737750668407,-500.0,0.00019545,2]
[350264651,1737750668416,-500.0,0.00019545,2]
[350264652,1737750668426,-500.0,0.00019545,2]
[350264653,1737750668439,-500.0,0.00019545,2]
[350264654,1737750668449,-500.0,0.00019545,2]
[350264655,1737750668458,-500.0,0.00019545,2]
[350264656,1737750668468,-500.0,0.00019545,2]
[350264657,1737750668477,-500.0,0.00019545,2]
[350264658,1737750668487,-500.0,0.00019545,2]
[350264659,1737750668498,-500.0,0.00019545,2]
[350264660,1737750668508,-873.54,0.00019545,2]
[350264661,1737750668519,-500.0,0.00019545,2]
[350264662,1737750668528,-500.0,0.00019545,2]
[350264663,1737750668538,-500.0,0.00019545,2]
[350264664,1737750668548,-500.0,0.00019545,2]
[350264665,1737750668557,-651.39,0.00019545,2]
[350264666,1737750668567,-500.0,0.00019545,2]
[350264667,1737750668576,-517.31,0.00019545,2]
[350264668,1737750668585,-938.77,0.00019545,2]
[350264669,1737750668595,-500.0,0.00019545,2]
[350264670,1737750668700,-543.39,0.00019545,2]
[350264671,1737750668710,-500.0,0.00019545,2]
[350264672,1737750668720,-500.0,0.00019545,2]
[350264673,1737750668729,-500.0,0.00019545,2]
[350264674,1737750668738,-938.07,0.00019545,2]
[350264675,1737750668748,-500.0,0.00019545,2]
[350264676,1737750668757,-500.0,0.00019545,2]
[350264677,1737750668766,-500.0,0.00019545,2]
[350264678,1737750668776,-515.74,0.00019545,2]
[350264679,1737750668785,-992.48,0.00019545,2]
[350264680,1737750668794,-878.54,0.00019545,2]
[350264681,1737750668804,-500.0,0.00019545,2]
[350264682,1737750668813,-500.0,0.00019545,2]
[350264683,1737750668823,-841.06,0.00019545,2]
[350264684,1737750668832,-1658.51,0.00019545,2]
[350264685,1737750668842,-500.0,0.00019545,2]
[350264686,1737750668862,-1085.11,0.00019545,2]
[350264687,1737750668872,-645.92,0.00019545,2]
[350264688,1737750668882,-500.0,0.00019545,2]
[350264689,1737750668893,-500.0,0.00019545,2]
[350264690,1737750668903,-637.79,0.00019545,2]
[350264691,1737750668912,-500.0,0.00019545,2]
[350264692,1737750668922,-500.0,0.00019545,2]
[350264693,1737750668936,-500.0,0.00019545,2]
[350264694,1737750668946,-695.75,0.00019545,2]
[350264695,1737750668956,-500.0,0.00019545,2]
[350264696,1737750668967,-500.0,0.00019545,2]
[350264697,1737750668976,-1594.85,0.00019545,2]
[350264698,1737750668987,-500.0,0.00019545,2]
[350264699,1737750668996,-500.0,0.00019545,2]
[350264700,1737750669006,-884.04,0.00019545,2]
[350264701,1737750669016,-2041.47,0.00019545,2]
[350264702,1737750669026,-500.0,0.00019545,2]
[350264703,1737750669035,-500.0,0.00019545,2]
[350264704,1737750669045,-1948.51,0.00019545,2]
[350264705,1737750669054,-500.0,0.00019545,2]
[350264706,1737750669063,-834.72,0.00019545,2]
[350264707,1737750669073,-537.77,0.00019545,2]
[350264708,1737750669082,-500.0,0.00019545,2]
[350264709,1737750669092,-500.0,0.00019545,2]
[350264710,1737750669102,-500.0,0.00019545,2]
[350264711,1737750669111,-500.0,0.00019545,2]
[350264712,1737750669120,-500.0,0.00019545,2]
[350264713,1737750669130,-565.61,0.00019545,2]
[350264714,1737750669140,-500.0,0.00019545,2]
[350264715,1737750669149,-500.0,0.00019545,2]
[350264716,1737750669159,-500.0,0.00019545,2]
[350264717,1737750669168,-1378.46,0.00019545,2]
[350264718,1737750669177,-1105.4,0.00019545,2]
[350264719,1737750669190,-627.82,0.00019545,2]
[350264720,1737750669200,-500.0,0.00019545,2]
[350264721,1737750669209,-500.0,0.00019545,2]
[350264722,1737750669219,-500.0,0.00019545,2]
[350264723,1737750669229,-976.72,0.00019545,2]
[350264724,1737750669239,-269.33802283,0.00019545,2]
[350264725,1737750669248,-1056.58,0.00019545,2]
[350264726,1737750669258,-500.0,0.00019545,2]
[350264727,1737750669268,-500.0,0.00019545,2]
[350264728,1737750669279,-500.0,0.00019545,2]
[350264729,1737750669289,-500.0,0.00019545,2]
[350264730,1737750669298,-687.85,0.00019545,2]
[350264731,1737750669309,-1295.73,0.00019545,2]
[350264732,1737750669319,-500.0,0.00019545,2]
[350264733,1737750669328,-500.0,0.00019545,2]
[350264734,1737750669338,-1989.39,0.00019545,2]
[350264735,1737750669348,-500.0,0.00019545,2]
[350264736,1737750669358,-500.0,0.00019545,2]
[350264737,1737750669368,-1560.8,0.00019545,2]
[350264738,1737750669377,-500.0,0.00019545,2]
[350264739,1737750669387,-500.0,0.00019545,2]
[350264740,1737750669397,-500.0,0.00019545,2]
[350264741,1737750669407,-500.0,0.00019545,2]
[350264742,1737750669417,-500.0,0.00019545,2]
[350264743,1737750669427,-900.02,0.00019545,2]
[350264744,1737750669439,-500.0,0.00019545,2]
[350264745,1737750669448,-500.0,0.00019545,2]
[350264746,1737750669458,-500.0,0.00019545,2]
[350264747,1737750669467,-500.0,0.00019545,2]
[350264748,1737750669476,-598.67,0.00019545,2]
[350264749,1737750669486,-500.0,0.00019546,2]
[350264750,1737750669496,-500.0,0.00019546,2]
[350264751,1737750669505,-500.0,0.00019546,2]
[350264752,1737750669515,-578.17343098,0.00019546,2]
[350264753,1737750669525,-500.0,0.00019546,2]
[350264754,1737750669534,-500.0,0.00019546,2]
[350264755,1737750669543,-500.0,0.00019546,2]
[350264756,1737750669552,-500.0,0.00019546,2]
[350264757,1737750669562,-500.0,0.00019546,2]
[350264758,1737750669571,-500.0,0.00019546,2]
[350264759,1737750669580,-500.0,0.00019546,2]
[350264760,1737750669590,-500.0,0.00019546,2]
[350264761,1737750669600,-500.0,0.00019546,2]
[350264762,1737750669610,-500.0,0.00019546,2]
[350264763,1737750669620,-500.0,0.00019546,2]
[350264764,1737750669630,-500.0,0.00019546,2]
[350264765,1737750669639,-500.0,0.00019546,2]
[350264766,1737750669649,-500.0,0.00019546,2]
[350264767,1737750669664,-629.10604491,0.00019546,2]
[350264768,1737750669674,-500.0,0.00019546,2]
[350264769,1737750669688,-500.0,0.00019546,2]
[350264770,1737750669698,-500.0,0.00019546,2]
[350264771,1737750669708,-500.0,0.00019546,2]
[350264772,1737750669718,-500.0,0.00019546,2]
[350264773,1737750669727,-500.0,0.00019546,2]
[350264774,1737750669737,-500.0,0.00019546,2]
[350264775,1737750669746,-500.0,0.00019546,2]
[350264776,1737750669755,-500.0,0.00019546,2]
[350264777,1737750669764,-521.44819274,0.00019546,2]
[350264778,1737750669774,-500.0,0.00019546,2]
[350264779,1737750669783,-338.77005294,0.00019546,2]
[350264780,1737750669792,-500.0,0.00019546,2]
[350264781,1737750669802,-500.0,0.00019546,2]
[350264782,1737750669811,-500.0,0.00019546,2]
[350264783,1737750669820,-500.0,0.00019546,2]
[350264784,1737750669829,-500.0,0.00019546,2]
[350264785,1737750669839,-500.0,0.00019546,2]
[350264786,1737750669850,-500.0,0.00019546,2]
[350264787,1737750669860,-500.0,0.00019546,2]
[350264788,1737750669869,-500.0,0.00019546,2]
[350264789,1737750669878,-500.0,0.00019546,2]
[350264790,1737750669887,-500.0,0.00019546,2]
[350264791,1737750669898,-500.0,0.00019546,2]
[350264792,1737750669908,-500.0,0.00019546,2]
[350264793,1737750669917,-500.0,0.00019546,2]
[350264794,1737750669927,-500.0,0.00019546,2]
[350264795,1737750669941,-500.0,0.00019546,2]
[350264796,1737750669954,-500.0,0.00019546,2]
[350264797,1737750669964,-500.0,0.00019546,2]
[350264798,1737750669973,-500.0,0.00019546,2]
[350264799,1737750669982,-500.0,0.00019546,2]
[350264800,1737750669991,-500.0,0.00019546,2]
[350264801,1737750670000,-500.0,0.00019546,2]
[350264802,1737750670009,-500.0,0.00019546,2]
[350264803,1737750670019,-500.0,0.00019546,2]
[350264804,1737750670028,-500.0,0.00019546,2]
[350264805,1737750670037,-257.27428573,0.00019546,2]
[350264806,1737750670046,-611.87,0.00019546,2]
[350264807,1737750670055,-500.0,0.00019546,2]
[350264808,1737750670064,-500.0,0.00019546,2]
[350264809,1737750670074,-500.0,0.00019546,2]
[350264810,1737750670083,-500.0,0.00019546,2]
[350264811,1737750670093,-500.0,0.00019546,2]
[350264812,1737750670102,-500.0,0.00019546,2]
[350264813,1737750670112,-500.0,0.00019546,2]
[350264814,1737750670121,-500.0,0.00019546,2]
[350264815,1737750670130,-325.94074379,0.00019546,2]
[350264816,1737750670140,-500.0,0.00019546,2]
[350264817,1737750670149,-1138.88,0.00019546,2]
[350264818,1737750670159,-2527.78,0.00019546,2]
[350264819,1737750670168,-500.0,0.00019546,2]
[350264820,1737750670178,-500.0,0.00019546,2]
[350264821,1737750670192,-500.0,0.00019546,2]
[350264822,1737750670201,-500.0,0.00019546,2]
[350264823,1737750670211,-504.75877877,0.00019546,2]
[350264824,1737750670220,-500.0,0.00019546,2]
[350264825,1737750670229,-500.0,0.00019546,2]
[350264826,1737750670239,-500.0,0.00019546,2]
[350264827,1737750670249,-524.26,0.00019546,2]
[350264828,1737750670258,-500.0,0.00019546,2]
[350264829,1737750670268,-993.78,0.00019546,2]
[350264830,1737750670277,-500.0,0.00019546,2]
[350264831,1737750670287,-500.0,0.00019546,2]
[350264832,1737750670297,-500.0,0.00019546,2]
[350264833,1737750670306,-500.0,0.00019546,2]
[350264834,1737750670316,-635.03,0.00019546,2]
[350264835,1737750670325,-500.0,0.00019546,2]
[350264836,1737750670335,-703.5,0.00019546,2]
[350264837,1737750670344,-347.67088864,0.00019546,2]
[350264838,1737750670354,-500.0,0.00019546,2]
[350264839,1737750670363,-500.0,0.00019546,2]
[350264840,1737750670372,-500.0,0.00019546,2]
[350264841,1737750670382,-500.0,0.00019546,2]
[350264842,1737750670391,-500.0,0.00019546,2]
[350264843,1737750670401,-1070.35,0.00019546,2]
[350264844,1737750670410,-500.0,0.00019546,2]
[350264845,1737750670419,-500.0,0.00019546,2]
[350264846,1737750670428,-824.29,0.00019546,2]
[350264847,1737750670442,-500.0,0.00019546,2]
[350264848,1737750670452,-500.0,0.00019546,2]
[350264849,1737750670461,-500.0,0.00019546,2]
[350264850,1737750670471,-500.0,0.00019546,2]
[350264851,1737750670480,-500.0,0.00019546,2]
[350264852,1737750670490,-500.0,0.00019546,2]
[350264853,1737750670587,-500.0,0.00019547,2]
[350264854,1737750670606,-500.0,0.00019547,2]
[350264855,1737750670615,-500.0,0.00019547,2]
[350264856,1737750670625,-200.0,0.00019575,2]
[350264857,1737750670635,-1530.0,0.000196,2]
[350264858,1737750670644,-1340.30248375,0.0001961,2]
[350264859,1737750670654,-150.0,0.00019611,2]
[350264860,1737750670664,-3276.83794688,0.00019624,2]
[350264861,1737750670673,-177.06998898,0.0001965,2]
[350264862,1737750670683,-500.0,0.00019681,2]
[350264863,1737750670695,-500.0,0.00019681,2]
[350264864,1737750670706,-500.0,0.00019682,2]
[350264865,1737750670715,-500.0,0.00019682,2]
[350264866,1737750670724,-500.0,0.00019682,2]
[350264867,1737750670733,-500.0,0.00019682,2]
[350264868,1737750670742,-601.13507754,0.00019682,2]
[350264869,1737750670751,-500.0,0.00019682,2]
[350264870,1737750670761,-572.32472462,0.00019682,2]
[350264871,1737750670770,-1717.58,0.00019682,2]
[350264872,1737750670779,-500.0,0.00019682,2]
[350264873,1737750670788,-500.0,0.00019682,2]
[350264874,1737750670797,-500.0,0.00019682,2]
[350264875,1737750670806,-500.0,0.00019682,2]
[350264876,1737750670815,-420.770977,0.00019682,2]
[350264877,1737750670824,-500.0,0.00019682,2]
[350264878,1737750670834,-500.0,0.00019682,2]
[350264879,1737750670844,-585.392894,0.00019682,2]
[350264880,1737750670857,-500.0,0.00019682,2]
[350264881,1737750670867,-588.93656651,0.00019682,2]
[350264882,1737750670876,-500.0,0.00019682,2]
[350264883,1737750670886,-163.58824578,0.00019682,2]
[350264884,1737750670895,-500.0,0.00019682,2]
[350264885,1737750670905,-500.0,0.00019682,2]
[350264886,1737750670914,-367.79260316,0.00019682,2]
[350264887,1737750670923,-500.0,0.00019682,2]
[350264888,1737750670937,-500.0,0.00019682,2]
[350264889,1737750670948,-500.0,0.00019682,2]
[350264890,1737750670958,-500.0,0.00019682,2]
[350264891,1737750670967,-500.0,0.00019682,2]
[350264892,1737750670976,-500.0,0.00019682,2]
[350264893,1737750670985,-500.0,0.00019682,2]
[350264894,1737750670994,-500.0,0.00019682,2]
[350264895,1737750671003,-500.0,0.00019682,2]
[350264896,1737750671012,-500.0,0.00019682,2]
[350264897,1737750671021,-500.0,0.00019682,2]
[350264898,1737750671031,-500.0,0.00019682,2]
[350264899,1737750671040,-500.0,0.00019682,2]
[350264900,1737750671049,-873.54,0.00019682,2]
[350264901,1737750671058,-500.0,0.00019682,2]
[350264902,1737750671067,-500.0,0.00019682,2]
[350264903,1737750671076,-500.0,0.00019682,2]
[350264904,1737750671085,-500.0,0.00019682,2]
[350264905,1737750671095,-651.39,0.00019682,2]
[350264906,1737750671104,-500.0,0.00019682,2]
[350264907,1737750671113,-517.31,0.00019682,2]
[350264908,1737750671122,-938.77,0.00019682,2]
[350264909,1737750671132,-500.0,0.00019682,2]
[350264910,1737750671141,-543.39,0.00019682,2]
[350264911,1737750671150,-500.0,0.00019682,2]
[350264912,1737750671159,-500.0,0.00019682,2]
[350264913,1737750671167,-500.0,0.00019682,2]
[350264914,1737750671176,-938.07,0.00019682,2]
[350264915,1737750671188,-500.0,0.00019682,2]
[350264916,1737750671197,-500.0,0.00019682,2]
[350264917,1737750671206,-500.0,0.00019682,2]
[350264918,1737750671215,-515.74,0.00019682,2]
[350264919,1737750671224,-992.48,0.00019682,2]
[350264920,1737750671233,-878.54,0.00019682,2]
[350264921,1737750671243,-500.0,0.00019682,2]
[350264922,1737750671251,-500.0,0.00019682,2]
[350264923,1737750671260,-841.06,0.00019682,2]
[350264924,1737750671269,-1658.51,0.00019682,2]
[350264925,1737750671279,-500.0,0.00019682,2]
[350264926,1737750671288,-1064.4422487,0.00019682,2]
[350264927,1737750671835,-200.58,0.00018146,2]
[350264928,1737750671844,-500.0,0.00018997,2]
[350264929,1737750671857,-540.00865424,0.00018997,2]
[350264930,1737750671867,-20.6677513,0.00019682,2]
[350264931,1737750671877,-645.92,0.00019682,2]
[350264932,1737750671886,-500.0,0.00019682,2]
[350264933,1737750671897,-500.0,0.00019682,2]
[350264934,1737750671906,-637.79,0.00019682,2]
[350264935,1737750671916,-500.0,0.00019682,2]
[350264936,1737750671927,-500.0,0.00019682,2]
[350264937,1737750671940,-500.0,0.00019682,2]
[350264938,1737750671950,-493.02940025,0.00019682,2]
[350264939,1737750671964,-202.72059975,0.00019682,2]
[350264940,1737750671974,-500.0,0.00019682,2]
[350264941,1737750671984,-500.0,0.00019682,2]
[350264942,1737750671993,-1594.85,0.00019682,2]
[350264943,1737750672003,-500.0,0.00019682,2]
[350264944,1737750672013,-500.0,0.00019682,2]
[350264945,1737750672023,-884.04,0.00019682,2]
[350264946,1737750672135,-2041.47,0.00019682,2]
[350264947,1737750672146,-500.0,0.00019682,2]
[350264948,1737750672155,-500.0,0.00019682,2]
[350264949,1737750672164,-1948.51,0.00019682,2]
[350264950,1737750672173,-500.0,0.00019682,2]
[350264951,1737750672182,-834.72,0.00019682,2]
[350264952,1737750672195,-537.77,0.00019682,2]
[350264953,1737750672204,-500.0,0.00019682,2]
[350264954,1737750672214,-500.0,0.00019682,2]
[350264955,1737750672223,-500.0,0.00019682,2]
[350264956,1737750672233,-500.0,0.00019682,2]
[350264957,1737750672243,-565.61,0.00019682,2]
[350264958,1737750672253,-500.0,0.00019682,2]
[350264959,1737750672262,-530.94077225,0.00019682,2]
[350264960,1737750672271,-500.0,0.00019682,2]
[350264961,1737750672280,-1378.46,0.00019682,2]
[350264962,1737750672290,-1105.4,0.00019682,2]
[350264963,1737750672299,-627.82,0.00019682,2]
[350264964,1737750672308,-500.0,0.00019682,2]
[350264965,1737750672318,-500.0,0.00019682,2]
[350264966,1737750672327,-500.0,0.00019682,2]
[350264967,1737750672336,-976.72,0.00019682,2]
[350264968,1737750672346,-1056.58,0.00019682,2]
[350264969,1737750672355,-500.0,0.00019682,2]
[350264970,1737750672364,-500.0,0.00019682,2]
[350264971,1737750672375,-500.0,0.00019682,2]
[350264972,1737750672384,-500.0,0.00019682,2]
[350264973,1737750672393,-687.85,0.00019682,2]
[350264974,1737750672402,-1295.73,0.00019682,2]
[350264975,1737750672412,-396.6233816,0.00019682,2]
[350264976,1737750672423,-103.3766184,0.00019682,2]
[350264977,1737750672432,-500.0,0.00019682,2]
[350264978,1737750672446,-875.77747347,0.00019682,2]
[350264979,1737750672457,-1113.61252653,0.00019682,2]
[350264980,1737750672467,-500.0,0.00019682,2]
[350264981,1737750672476,-183.53227639,0.00019682,2]
[350264982,1737750672488,-316.46772361,0.00019682,2]
[350264983,1737750672497,-1209.96835421,0.00019682,2]
[350264984,1737750672509,-350.83164579,0.00019682,2]
[350264985,1737750672518,-500.0,0.00019682,2]
[350264986,1737750672528,-500.0,0.00019682,2]
[350264987,1737750672537,-500.0,0.00019682,2]
[350264988,1737750672547,-500.0,0.00019682,2]
[350264989,1737750672556,-900.02,0.00019682,2]
[350264990,1737750672566,-500.0,0.00019682,2]
[350264991,1737750672576,-394.0104189,0.00019682,2]
[350264992,1737750672587,-105.9895811,0.00019682,2]
[350264993,1737750672597,-500.0,0.00019682,2]
[350264994,1737750672607,-500.0,0.00019682,2]
[350264995,1737750672616,-500.0,0.00019683,2]
[350264996,1737750672626,-159.95439811,0.00019683,2]
[350264997,1737750672635,-226.45866286,0.00019683,2]
[350264998,1737750672644,-299.44835793,0.00019683,2]
[350264999,1737750672655,-200.55164207,0.00019683,2]
[350265000,1737750672665,-500.0,0.00019683,2]
[350265001,1737750672674,-223.94513055,0.00019683,2]
[350265002,1737750672684,-131.84639738,0.00019683,2]
[350265003,1737750672698,-368.15360262,0.00019683,2]
[350265004,1737750672707,-500.0,0.00019683,2]
[350265005,1737750672716,-457.08233558,0.00019683,2]
[350265006,1737750672728,-42.91766442,0.00019683,2]
[350265007,1737750672737,-500.0,0.00019683,2]
[350265008,1737750672747,-500.0,0.00019683,2]
[350265009,1737750672757,-221.86210347,0.00019683,2]
[350265010,1737750672766,-483.02023211,0.00019683,2]
[350265011,1737750672778,-16.97976789,0.00019683,2]
[350265012,1737750672787,-500.0,0.00019683,2]
[350265013,1737750672797,-500.0,0.00019683,2]
[350265014,1737750672806,-500.0,0.00019683,2]
[350265015,1737750672815,-500.0,0.00019683,2]
[350265016,1737750672825,-500.0,0.00019683,2]
[350265017,1737750672835,-500.0,0.00019683,2]
[350265018,1737750672844,-500.0,0.00019683,2]
[350265019,1737750672857,-500.0,0.00019683,2]
[350265020,1737750672866,-500.0,0.00019683,2]
[350265021,1737750672875,-500.0,0.00019683,2]
[350265022,1737750672884,-500.0,0.00019683,2]
[350265023,1737750672894,-500.0,0.00019683,2]
[350265024,1737750672903,-500.0,0.00019683,2]
[350265025,1737750672912,-187.45759221,0.00019683,2]
[350265026,1737750672922,-340.41335491,0.00019683,2]
[350265027,1737750672935,-500.0,0.00019683,2]
[350265028,1737750672947,-500.0,0.00019683,2]
[350265029,1737750672956,-500.0,0.00019683,2]
[350265030,1737750672965,-500.0,0.00019683,2]
[350265031,1737750672975,-500.0,0.00019683,2]
[350265032,1737750672984,-500.0,0.00019683,2]
[350265033,1737750672993,-500.0,0.00019683,2]
[350265034,1737750673002,-500.0,0.00019683,2]
[350265035,1737750673011,-500.0,0.00019683,2]
[350265036,1737750673021,-500.0,0.00019683,2]
[350265037,1737750673031,-500.0,0.00019683,2]
[350265038,1737750673040,-500.0,0.00019683,2]
[350265039,1737750673050,-500.0,0.00019683,2]
[350265040,1737750673059,-682.72074599,0.00019683,2]
[350265041,1737750673071,-456.15925401,0.00019683,2]
[350265042,1737750673080,-1125.42061706,0.00019683,2]
[350265043,1737750673092,-1402.35938294,0.00019683,2]
[350265044,1737750673101,-500.0,0.00019683,2]
[350265045,1737750673110,-500.0,0.00019683,2]
[350265046,1737750673120,-500.0,0.00019683,2]
[350265047,1737750673129,-500.0,0.00019683,2]
[350265048,1737750673138,-500.0,0.00019683,2]
[350265049,1737750673147,-500.0,0.00019683,2]
[350265050,1737750673157,-524.26,0.00019683,2]
[350265051,1737750673166,-500.0,0.00019683,2]
[350265052,1737750673175,-993.78,0.00019683,2]
[350265053,1737750673187,-500.0,0.00019683,2]
[350265054,1737750673197,-500.0,0.00019683,2]
[350265055,1737750673206,-500.0,0.00019683,2]
[350265056,1737750673215,-635.03,0.00019683,2]
[350265057,1737750673225,-703.5,0.00019683,2]
[350265058,1737750673234,-500.0,0.00019683,2]
[350265059,1737750673243,-500.0,0.00019683,2]
[350265060,1737750673253,-500.0,0.00019683,2]
[350265061,1737750673263,-500.0,0.00019683,2]
[350265062,1737750673272,-500.0,0.00019683,2]
[350265063,1737750673281,-1070.35,0.00019683,2]
[350265064,1737750673291,-500.0,0.00019683,2]
[350265065,1737750673300,-824.29,0.00019683,2]
[350265066,1737750673309,-500.0,0.00019683,2]
[350265067,1737750673320,-185.02233617,0.00019683,2]
[350265068,1737750673330,-500.0,0.00019683,2]
[350265069,1737750673339,-500.0,0.00019683,2]
[350265070,1737750673348,-500.0,0.00019683,2]
[350265071,1737750673357,-500.0,0.00019683,2]
[350265072,1737750673367,-515.62,0.00019684,2]
[350265073,1737750673376,-500.0,0.00019684,2]
[350265074,1737750673385,-1001.0,0.000197,2]
[350265075,1737750673395,-1000.0,0.000197,2]
[350265076,1737750673405,-1340.264107,0.000197,2]
[350265077,1737750673415,-752.38356989,0.00019721,2]
[350265078,1737750673427,-247.61643011,0.00019721,2]
[350265079,1737750673439,-35.21340289,0.00019721,2]
[350265080,1737750673451,-114.78659711,0.00019721,2]
[350265081,1737750673460,-141.30564292,0.00019723,2]
[350265082,1737750673472,-488.84504819,0.00019723,2]
[350265083,1737750673481,-272.41233512,0.00019728,2]
[350265084,1737750673512,-3004.42561176,0.00019728,2]
[350265085,1737750673522,-150.0,0.00019728,2]
[350265086,1737750673531,-150.0,0.00019733,2]
[350265087,1737750673541,-150.0,0.00019733,2]
[350265088,1737750673551,-150.0,0.00019737,2]
[350265089,1737750673560,-150.0,0.00019739,2]
[350265090,1737750673570,-150.0,0.0001974,2]
[350265091,1737750673579,-212.68643598,0.00019742,2]
[350265092,1737750673590,-10270.89554809,0.00019746,2]
[350265093,1737750673600,-150.0,0.00019749,2]
[350265094,1737750673610,-150.0,0.0001975,2]
[350265095,1737750673620,-150.0,0.00019751,2]
[350265096,1737750673630,-17119.06867047,0.00019751,2]
[350265097,1737750673639,-150.0,0.00019752,2]
[350265098,1737750673649,-17119.06867047,0.00019754,2]
[350265099,1737750673658,-200.0,0.00019754,2]
[350265100,1737750673759,-150.0,0.00019755,2]
[350265101,1737750673770,-150.0,0.00019755,2]